bitfinex-derivatives/quotes_SOLF0:USTF0_20250914
["timestamp","ask_amount","ask_price","bid_price","bid_amount"]
[1757892060096,6.93879215,241.47,241.4,10.24429496]
[1757892060804,6.93879215,241.47,241.4,10.26707151]
[1757892061404,6.93879215,241.47,241.41,3.47707151]
[1757892061707,0.86879215,241.47,241.42,3.47707151]
[1757892061900,0.86879215,241.5,241.43,10.26707151]
[1757892062099,0.86879215,241.5,241.44,6.79]
[1757892062401,6.07,241.52,241.44,6.79]
[1757892062599,6.93879215,241.52,241.44,10.26707151]
[1757892062904,6.93879215,241.52,241.46,3.47707151]
[1757892063508,0.86879215,241.52,241.47,6.79]
[1757892063901,0.86879215,241.52,241.46,10.26707151]
[1757892067702,20.42,241.56,241.46,10.26707151]
[1757892067909,6.07,241.57,241.49,6.79]
[1757892067910,0.86879215,241.55,241.49,6.79]
[1757892069004,6.07,241.54,241.46,3.47707151]
[1757892069408,0.86879215,241.52,241.46,3.47707151]
[1757892071409,0.86879215,241.52,241.45,3.47707151]
[1757892071813,0.86879215,241.52,241.44,10.26707151]
[1757892072105,6.07,241.48,241.44,6.79]
[1757892073310,0.86879215,241.46,241.42,3.47707151]
[1757892073511,0.86879215,241.46,241.39,10.48707151]
[1757892073813,38.22,241.53,241.4,10.48707151]
[1757892074015,38.22,241.53,241.41,3.47707151]
[1757892074016,0.86879215,241.49,241.41,3.47707151]
[1757892074612,6.93879215,241.49,241.41,3.47707151]
[1757892077218,6.93879215,241.49,241.42,10.48707151]
[1757892078420,6.93879215,241.49,241.43,3.47707151]
[1757892078913,0.86879215,241.49,241.44,7.01]
[1757892079119,0.86879215,241.49,241.43,3.47707151]
[1757892080424,0.86879215,241.49,241.45,7.01]
[1757892081724,0.86879215,241.49,241.44,3.47707151]
[1757892082618,0.86879215,241.49,241.45,7.01]
[1757892082816,0.86879215,241.49,241.44,3.47707151]
[1757892083222,0.86879215,241.49,241.45,7.01]
[1757892083424,0.86879215,241.49,241.44,3.47707151]
[1757892083816,0.86879215,241.49,241.46,7.01]
[1757892084728,0.86879215,241.52,241.46,7.01]
[1757892086230,0.86879215,241.53,241.46,10.48707151]
[1757892086432,0.86879215,241.53,241.47,3.47707151]
[1757892088735,6.07,241.49,241.47,3.47707151]
[1757892088930,6.07,241.49,241.45,10.48707151]
[1757892089128,0.86879215,241.5,241.45,3.47707151]
[1757892089835,6.07,241.53,241.45,10.48707151]
[1757892092134,6.07,241.53,241.38,29.83294109]
[1757892092135,1.35792798,241.54,241.46,10.48707151]
[1757892092335,6.07,241.57,241.48,7.01]
[1757892092535,6.07,241.57,241.49,3.47707151]
[1757892095235,1.35792798,241.59,241.5,10.48707151]
[1757892095439,1.35792798,241.59,241.52,3.47707151]
[1757892095639,6.07,241.58,241.51,3.47707151]
[1757892095935,90.5091386,241.6,241.49,7.01]
[1757892095936,1.35792798,241.55,241.49,7.01]
[1757892097136,1.35792798,241.55,241.49,10.48707151]
[1757892097939,90.5091386,241.6,241.42,6.83294109]
[1757892097940,1.35792798,241.59,241.5,10.48707151]
[1757892098140,1.35792798,241.59,241.5,7.01]
[1757892100541,96.5791386,241.6,241.5,7.01]
[1757892101639,6.07,241.6,241.5,7.01]
[1757892102640,6.07,241.6,241.5,4.57294574]
[1757892102843,6.07,241.6,241.51,7.17]
[1757892105044,6.09,241.58,241.51,7.17]
[1757892110450,6.09,241.62,241.51,7.17]
[1757892115151,7.44792798,241.62,241.51,7.17]
[1757892118159,102.2,241.64,241.51,7.17]
[1757892119451,6.07,241.63,241.51,7.17]
[1757892119656,6.07,241.6,241.51,7.17]
[1757892122663,6.07,241.52,241.45,3.47369586]
[1757892122865,6.07,241.52,241.43,10.34369586]
[1757892123956,103.49792798,241.54,241.45,3.47369586]
[1757892124157,103.49792798,241.54,241.46,6.87]
[1757892124359,1.35792798,241.54,241.46,6.87]
[1757892129364,7.42792798,241.54,241.46,6.87]
[1757892130665,1.35792798,241.5,241.43,3.47722017]
[1757892130867,1.35792798,241.5,241.42,10.34722017]
[1757892132860,1.35792798,241.5,241.42,6.87]
[1757892133169,6.05,241.45,241.38,3.47722017]
[1757892133470,6.05,241.45,241.37,7.12]
[1757892134063,102.14,241.47,241.28,39.39294109]
[1757892134064,7.40792798,241.42,241.33,3.47722017]
[1757892134366,7.40792798,241.42,241.32,10.59722017]
[1757892134565,80.64792798,241.42,241.32,10.59722017]
[1757892134767,80.64792798,241.42,241.34,7.12]
[1757892135166,6.05,241.47,241.34,7.12]
[1757892135362,6.05,241.47,241.35,7.12]
[1757892135363,7.40792798,241.47,241.35,7.12]
[1757892135566,7.40792798,241.47,241.36,7.12]
[1757892135768,22.18792798,241.47,241.36,7.12]
[1757892136772,7.40792798,241.47,241.36,7.12]
[1757892137071,27.28792798,241.47,241.36,7.12]
[1757892137271,1.35792798,241.46,241.36,7.12]
[1757892137968,6.05,241.45,241.36,7.12]
[1757892138168,6.05,241.41,241.31,10.59722017]
[1757892138369,6.05,241.41,241.31,7.12]
[1757892138868,1.35792798,241.42,241.31,7.12]
[1757892141374,7.40792798,241.45,241.32,7.12]
[1757892144274,1.35792798,241.45,241.32,3.47722017]
[1757892144468,29.18,241.48,241.33,7.12]
[1757892144670,49.43,241.49,241.33,7.12]
[1757892145574,1.35792798,241.42,241.33,7.12]
[1757892145772,7.40792798,241.42,241.33,7.12]
[1757892149877,0.8699721,241.39,241.33,7.12]
[1757892154388,0.8699721,241.42,241.33,7.12]
[1757892156083,6.05,241.43,241.33,7.12]
[1757892156084,0.8699721,241.39,241.33,7.12]
[1757892156887,16.94,241.44,241.24,4.57294574]
[1757892156888,0.8699721,241.36,241.28,7.12]
[1757892157287,6.9199721,241.42,241.28,7.12]
[1757892157583,6.9199721,241.42,241.31,7.12]
[1757892157584,0.8699721,241.42,241.31,7.12]
[1757892159187,6.05,241.46,241.31,7.12]
[1757892159188,0.8699721,241.45,241.31,7.12]
[1757892159884,0.8699721,241.45,241.33,0.8699721]
[1757892160187,0.8699721,241.49,241.37,7.12]
[1757892161484,6.05,241.48,241.37,7.12]
[1757892167790,6.05,241.48,241.37,10.59722017]
[1757892168690,0.8699721,241.43,241.37,7.12]
[1757892168891,0.8699721,241.4,241.33,10.19722017]
[1757892169599,6.9399721,241.37,241.31,10.19722017]
[1757892169896,6.9399721,241.37,241.31,6.72]
[1757892170395,6.9399721,241.37,241.29,3.47722017]
[1757892170597,6.9399721,241.37,241.28,3.47722017]
[1757892171192,6.9399721,241.37,241.28,3.47825103]
[1757892172298,6.9399721,241.34,241.27,10.19825103]
[1757892173395,6.9399721,241.34,241.27,6.72]
[1757892174194,6.9399721,241.34,241.27,10.19825103]
[1757892174498,0.8699721,241.31,241.27,10.19825103]
[1757892174797,6.08,241.3,241.24,3.47825103]
[1757892175198,6.9499721,241.28,241.24,6.59]
[1757892175599,6.08,241.27,241.23,3.47825103]
[1757892175803,6.08,241.27,241.23,10.06825103]
[1757892176701,6.08,241.27,241.24,6.59]
[1757892176901,0.8699721,241.28,241.24,6.59]
[1757892177206,0.8699721,241.28,241.22,10.06825103]
[1757892181301,6.08,241.44,241.23,6.59]
[1757892181501,0.8699721,241.33,241.25,6.59]
[1757892181699,6.08,241.32,241.25,6.59]
[1757892182709,6.08,241.29,241.25,6.59]
[1757892183412,6.08,241.29,241.21,10.06825103]
[1757892183714,6.08,241.29,241.21,6.59]
[1757892195624,6.9499721,241.29,241.21,6.59]
[1757892197729,14.24,241.33,241.16,0.8699721]
[1757892197730,6.9499721,241.23,241.16,6.52]
[1757892197923,6.9499721,241.2,241.16,6.52]
[1757892198729,6.08,241.19,241.12,6.52]
[1757892200325,6.08,241.16,241.12,6.52]
[1757892200531,6.08,241.16,241.05,6.52]
[1757892200830,0.8699721,241.14,241.05,6.52]
[1757892201231,6.08,241.13,241.05,6.52]
[1757892202534,0.8699721,241.11,241.05,6.52]
[1757892203231,6.08,241.1,241.0,6.52]
[1757892203532,6.08,241.1,241.01,6.52]
[1757892205434,6.08,241.14,241.01,6.52]
[1757892205629,0.8699721,241.13,241.01,6.52]
[1757892206537,10.9,241.15,241.0,0.8699721]
[1757892206538,0.8699721,241.16,241.04,6.52]
[1757892206835,0.8699721,241.19,241.07,6.52]
[1757892207037,6.08,241.18,241.07,6.52]
[1757892207232,6.08,241.12,241.02,6.52]
[1757892207430,0.8699721,241.07,240.97,6.52]
[1757892208332,6.08,241.09,240.97,6.52]
[1757892208527,0.8699721,241.08,240.97,6.52]
[1757892209834,6.08,241.09,240.97,6.52]
[1757892210035,6.08,241.09,240.93,6.52]
[1757892210937,21.78,241.08,240.93,7.88294873]
[1757892211133,6.08,241.09,240.93,7.88294873]
[1757892211333,7.16,241.08,240.93,7.88294873]
[1757892211534,18.96,241.09,240.93,7.88294873]
[1757892211739,6.08,241.09,240.97,1.36294873]
[1757892211933,20.24,241.12,240.98,6.52]
[1757892213733,6.08,241.11,240.98,6.52]
[1757892214341,7.44294873,241.11,240.98,6.52]
[1757892216839,31.48,241.1,240.98,6.52]
[1757892217138,6.08,241.09,240.98,6.52]
[1757892218840,42.16,241.08,240.98,6.52]
[1757892220742,52.3,241.07,240.98,6.52]
[1757892221242,6.08,241.09,240.98,6.52]
[1757892221443,15.8,241.08,240.98,6.52]
[1757892222043,35.34,241.08,240.98,6.52]
[1757892222543,6.09,241.07,240.98,6.52]
[1757892224240,6.09,241.05,240.91,7.1]
[1757892224441,1.36294873,241.02,240.91,7.1]
[1757892224640,6.09,241.01,240.91,7.1]
[1757892227344,45.56,241.04,240.91,7.1]
[1757892228540,72.53294873,241.05,240.91,7.1]
[1757892229742,7.45294873,241.09,240.91,10.57825103]
[1757892229948,83.62,241.08,240.92,7.1]
[1757892230244,6.09,241.07,240.92,3.47825103]
[1757892230451,6.09,241.07,240.93,7.1]
[1757892231337,1.36294873,241.06,240.93,7.1]
[1757892231538,6.09,241.05,240.93,7.1]
[1757892231844,103.60294873,241.06,240.89,1.36294873]
[1757892231845,1.36294873,240.98,240.89,7.1]
[1757892232045,7.45294873,240.98,240.89,7.1]
[1757892234256,33.17,241.05,240.89,7.1]
[1757892234552,6.09,241.05,240.9,7.1]
[1757892235147,6.09,241.05,240.9,3.47825103]
[1757892235348,6.09,241.05,240.91,6.8]
[1757892236351,6.09,241.05,240.92,6.8]
[1757892237151,6.09,241.05,240.93,6.8]
[1757892237353,6.09,241.09,240.94,6.8]
[1757892237551,6.09,241.09,240.96,6.8]
[1757892238257,6.09,241.09,240.97,6.8]
[1757892238855,6.09,241.09,240.97,10.27825103]
[1757892239058,6.09,241.09,240.98,6.8]
[1757892239260,6.09,241.09,240.99,6.8]
[1757892241164,108.33,241.09,240.99,6.8]
[1757892241363,1.36294873,241.08,240.99,10.27825103]
[1757892241560,6.09,241.07,240.99,6.8]
[1757892242865,6.09,241.07,240.99,10.27825103]
[1757892243267,1.36294873,241.08,241.01,3.47825103]
[1757892243973,6.09,241.11,241.02,10.27825103]
[1757892245173,6.09,241.11,241.03,3.47825103]
[1757892247369,6.09,241.11,241.04,3.47825103]
[1757892247878,278.72,241.12,241.05,10.27825103]
[1757892248065,6.09,241.11,241.06,3.47825103]
[1757892248266,6.09,241.08,241.03,3.47825103]
[1757892248473,6.09,241.04,240.97,3.47825103]
[1757892249670,6.09,241.04,240.96,6.8]
[1757892249671,6.09,241.04,240.96,10.27825103]
[1757892253477,278.72,241.12,240.98,6.84]
[1757892253478,6.09,241.11,240.98,6.84]
[1757892253676,1.36294873,241.09,240.99,3.47825103]
[1757892254076,102.6,241.08,241.0,6.84]
[1757892254276,102.6,241.08,241.01,3.47825103]
[1757892254877,102.6,241.08,241.0,10.31825103]
[1757892255478,102.6,241.08,241.01,3.47825103]
[1757892255883,1.36294873,241.09,241.02,3.47825103]
[1757892256076,102.58,241.1,241.02,3.47825103]
[1757892256675,6.09,241.07,241.0,3.47825103]
[1757892257582,102.58,241.1,240.98,3.47825103]
[1757892257583,1.36294873,241.04,240.98,3.47825103]
[1757892257781,7.45294873,241.04,240.98,3.47825103]
[1757892258475,7.45294873,241.04,240.96,3.47825103]
[1757892258678,102.58,241.03,240.96,3.47825103]
[1757892260980,102.58,241.03,240.95,10.31825103]
[1757892261382,102.58,241.03,240.96,3.47825103]
[1757892262283,102.58,241.03,240.95,10.31825103]
[1757892262677,6.09,241.04,240.95,10.31825103]
[1757892262882,108.59,241.04,240.98,3.47825103]
[1757892263983,108.59,241.04,240.97,3.47825103]
[1757892264283,108.59,241.04,240.98,3.47825103]
[1757892264485,1.36294873,241.07,240.98,10.31825103]
[1757892264685,31.82294873,241.07,240.99,3.47825103]
[1757892264881,6.09,241.08,241.0,6.84]
[1757892265085,6.09,241.08,241.0,10.31825103]
[1757892265587,6.09,241.08,241.01,3.47825103]
[1757892266784,1.36294873,241.11,241.01,3.47825103]
[1757892266986,1.36294873,241.11,241.03,3.47825103]
[1757892267182,102.46,241.12,241.04,3.47825103]
[1757892267384,102.46,241.12,241.04,6.84]
[1757892267588,102.46,241.12,241.04,10.31825103]
[1757892267886,102.46,241.12,241.05,3.47825103]
[1757892268886,102.46,241.12,241.06,3.47825103]
[1757892269183,1.36294873,241.15,241.0,8.19588982]
[1757892269184,103.80294873,241.15,241.08,3.47825103]
[1757892269486,103.80294873,241.15,241.07,10.31825103]
[1757892269883,103.31170742,241.15,241.07,10.31825103]
[1757892270282,103.31170742,241.15,241.08,3.47825103]
[1757892270889,9.0,241.25,241.09,6.84]
[1757892271089,0.87170742,241.23,241.14,3.47825103]
[1757892271290,0.87170742,241.2,241.13,3.47862112]
[1757892272489,0.87170742,241.22,241.13,6.84]
[1757892272789,109.48170742,241.24,241.13,11.19032854]
[1757892273494,6.09,241.23,241.13,7.71170742]
[1757892274591,0.87170742,241.22,241.13,6.84]
[1757892274786,0.87170742,241.22,241.09,4.57294574]
[1757892274787,6.09,241.18,241.09,10.31862112]
[1757892274986,0.87170742,241.16,241.09,10.31862112]
[1757892275183,0.87170742,241.16,241.09,6.84]
[1757892275986,34.09,241.22,241.1,10.31862112]
[1757892276187,6.96170742,241.18,241.1,10.31862112]
[1757892276493,6.96170742,241.18,241.1,6.84]
[1757892276792,0.87170742,241.21,241.1,11.19032854]
[1757892276992,55.27,241.23,241.11,6.84]
[1757892277193,0.87170742,241.21,241.11,6.84]
[1757892277588,0.87170742,241.18,241.11,6.84]
[1757892277790,6.96170742,241.2,241.11,6.84]
[1757892280796,0.87170742,241.23,241.11,6.84]
[1757892281390,0.87170742,241.23,241.14,7.01]
[1757892281598,6.09,241.24,241.14,7.01]
[1757892281796,0.87170742,241.23,241.14,7.01]
[1757892283796,6.09,241.24,241.14,7.01]
[1757892283998,0.87170742,241.22,241.14,7.01]
[1757892291413,0.87170742,241.22,241.14,7.88170742]
[1757892291705,6.96170742,241.24,241.14,7.88170742]
[1757892291909,0.87170742,241.24,241.14,7.88170742]
[1757892292812,0.87170742,241.25,241.14,7.88170742]
[1757892293012,278.76,241.27,241.14,7.88170742]
[1757892293312,0.87170742,241.27,241.18,7.01]
[1757892294405,9.0,241.36,241.18,7.01]
[1757892294610,0.87170742,241.3,241.18,7.01]
[1757892294812,0.87170742,241.32,241.21,6.49]
[1757892297517,0.87170742,241.32,241.24,6.49]
[1757892300708,6.08,241.35,241.24,6.49]
[1757892300709,0.87170742,241.33,241.24,6.49]
[1757892301012,0.87170742,241.34,241.24,6.49]
[1757892301412,6.08,241.35,241.27,6.49]
[1757892301609,0.87170742,241.36,241.27,6.49]
[1757892302016,91.54385555,241.37,241.27,6.49]
[1757892302316,284.64,241.41,241.3,6.49]
[1757892302510,6.95170742,241.41,241.3,6.49]
[1757892302908,0.87170742,241.41,241.3,6.49]
[1757892304216,0.87170742,241.41,241.32,0.87170742]
[1757892304422,102.18,241.42,241.33,6.49]
[1757892304620,0.87170742,241.42,241.33,6.49]
[1757892308718,6.08,241.45,241.33,6.49]
[1757892308917,0.87170742,241.42,241.33,6.49]
[1757892309517,6.08,241.48,241.33,6.49]
[1757892309823,278.5,241.55,241.42,6.49]
[1757892309824,6.95170742,241.51,241.42,6.49]
[1757892310623,6.08,241.51,241.42,18.84940414]
[1757892312521,0.87170742,241.52,241.42,12.35940414]
[1757892312721,0.87170742,241.53,241.44,0.87170742]
[1757892312927,0.87170742,241.53,241.45,6.96]
[1757892315124,0.87170742,241.47,241.4,6.96]
[1757892315426,0.87170742,241.44,241.4,19.64459676]
[1757892315626,0.87170742,241.44,241.4,6.96]
[1757892315828,0.87170742,241.44,241.34,6.96]
[1757892317323,0.87170742,241.38,241.34,6.96]
[1757892317531,0.87170742,241.35,241.25,6.96]
[1757892317829,0.87170742,241.35,241.28,6.96]
[1757892318923,0.87170742,241.35,241.28,19.37380056]
[1757892319424,0.87170742,241.4,241.31,0.87170742]
[1757892319624,0.87170742,241.4,241.32,6.96]
[1757892320418,6.08,241.43,241.32,6.96]
[1757892320620,0.87170742,241.44,241.35,6.96]
[1757892320928,6.08,241.43,241.35,6.96]
[1757892322420,0.87170742,241.44,241.35,6.96]
[1757892322625,0.87170742,241.47,241.39,0.87170742]
[1757892322924,0.87170742,241.47,241.39,7.83170742]
[1757892325326,6.08,241.48,241.39,7.83170742]
[1757892328423,6.08,241.48,241.39,6.96]
[1757892332027,6.08,241.46,241.31,6.96]
[1757892332224,6.08,241.42,241.31,6.96]
[1757892332430,1.35843198,241.43,241.28,12.47231882]
[1757892332626,1.35843198,241.39,241.27,6.96]
[1757892332932,6.08,241.38,241.27,6.96]
[1757892334825,6.08,241.34,241.22,6.96]
[1757892338727,31.88,241.33,241.22,6.96]
[1757892339335,1.35843198,241.3,241.16,6.96]
[1757892339538,6.08,241.29,241.16,6.96]
[1757892340238,6.08,241.29,241.16,19.43343696]
[1757892342431,6.08,241.29,241.16,12.47343696]
[1757892342636,6.08,241.29,241.17,6.86]
[1757892343737,1.35843198,241.26,241.09,1.35843198]
[1757892344046,6.07,241.25,241.1,6.86]
[1757892344447,35.41,241.25,241.1,6.86]
[1757892345746,6.07,241.25,241.1,6.86]
[1757892346145,1.35843198,241.26,241.1,6.86]
[1757892346146,6.07,241.23,241.1,6.86]
[1757892346653,6.07,241.21,241.1,6.86]
[1757892347346,6.07,241.21,241.01,303.68]
[1757892347347,6.07,241.21,241.03,6.86]
[1757892347547,6.07,241.17,241.03,6.86]
[1757892347748,6.07,241.17,241.03,19.34762801]
[1757892347948,1.35843198,241.18,241.03,6.86]
[1757892347949,6.07,241.15,241.03,6.86]
[1757892348247,6.07,241.13,241.03,6.86]
[1757892350347,1.35843198,241.12,241.03,6.86]
[1757892354855,1.38843198,241.12,241.03,6.86]
[1757892355650,1.35843198,241.12,241.03,6.86]
[1757892355856,0.03,241.11,241.03,6.86]
[1757892356556,0.03,241.1,240.95,7.01]
[1757892356757,67.62,241.09,240.95,7.01]
[1757892357253,0.03,241.1,240.95,7.01]
[1757892357660,24.43843198,241.09,240.95,7.01]
[1757892357964,0.03,241.1,240.96,8.36843198]
[1757892359364,0.03,241.14,241.01,7.01]
[1757892359568,23.11,241.14,241.01,7.01]
[1757892360065,80.99,241.14,241.01,7.01]
[1757892360765,102.27,241.14,241.01,7.01]
[1757892361064,0.03,241.14,241.01,7.01]
[1757892361265,102.27,241.14,241.01,7.01]
[1757892363467,1.35843198,241.13,241.01,7.01]
[1757892363963,21.48,241.12,241.01,7.01]
[1757892365962,9.0,241.17,241.01,7.01]
[1757892365963,0.03,241.11,241.01,7.01]
[1757892368566,65.82,241.14,241.01,7.01]
[1757892368769,103.62843198,241.15,241.01,7.01]
[1757892369473,278.6,241.18,241.01,8.36843198]
[1757892369968,1.35843198,241.15,241.01,7.01]
[1757892370274,0.03,241.14,241.01,7.01]
[1757892372977,1.35843198,241.11,241.01,7.01]
[1757892373177,0.03,241.1,241.01,7.01]
[1757892377874,1.35843198,241.11,241.01,7.01]
[1757892390481,0.03,241.1,241.01,7.01]
[1757892390686,1.35843198,241.06,240.97,7.14]
[1757892392979,1.35843198,241.02,240.97,7.14]
[1757892393178,1.35843198,241.02,240.93,6.55]
[1757892393783,14.16,241.05,240.93,6.55]
[1757892393784,0.87288058,240.99,240.93,6.55]
[1757892397891,0.87288058,241.0,240.93,6.55]
[1757892398388,9.0,241.07,240.93,6.55]
[1757892398689,0.87288058,241.02,240.93,6.55]
[1757892398890,0.87288058,241.05,240.93,6.55]
[1757892399690,9.0,241.07,240.93,7.42288058]
[1757892399888,0.87288058,241.05,240.93,7.42288058]
[1757892402286,0.87288058,241.08,240.97,0.87288058]
[1757892402589,0.87288058,241.1,240.98,7.05]
[1757892402983,0.87288058,241.07,240.98,7.05]
[1757892404790,0.03,241.11,240.98,7.05]
[1757892404993,0.90288058,241.11,240.98,7.05]
[1757892406295,0.87288058,241.11,241.01,7.05]
[1757892407697,9.87288058,241.14,241.01,7.05]
[1757892409095,9.87288058,241.14,241.04,7.05]
[1757892409492,0.87288058,241.14,241.04,7.05]
[1757892410388,9.0,241.22,241.04,7.05]
[1757892410595,0.90288058,241.21,241.07,7.05]
[1757892411198,0.90288058,241.21,241.1,7.05]
[1757892411395,278.7,241.23,241.12,0.87288058]
[1757892411596,278.7,241.23,241.13,7.05]
[1757892411991,0.87288058,241.24,241.13,7.05]
[1757892413900,0.87288058,241.27,241.13,7.05]
[1757892414305,0.87288058,241.27,241.15,0.87288058]
[1757892414498,0.87288058,241.27,241.16,7.05]
[1757892415103,0.87288058,241.23,241.16,7.05]
[1757892420102,47.44,241.3,241.16,7.05]
[1757892420303,0.87288058,241.24,241.16,7.05]
[1757892420701,47.44,241.3,241.16,7.05]
[1757892421008,0.87288058,241.28,241.16,7.05]
[1757892422508,195.27350736,241.33,241.19,6.63]
[1757892422701,0.87288058,241.28,241.19,6.63]
[1757892422908,0.87288058,241.25,241.19,6.63]
[1757892423499,0.87288058,241.22,241.07,0.87288058]
[1757892423802,0.87288058,241.19,241.08,6.63]
[1757892427506,0.87288058,241.19,241.08,7.50288058]
[1757892427707,0.87288058,241.19,241.09,6.63]
[1757892431607,0.87288058,241.1,240.97,6.79]
[1757892431818,0.87288058,241.07,240.97,6.79]
[1757892432213,0.87288058,241.07,240.97,7.66288058]
[1757892432514,0.87288058,241.1,240.97,7.66288058]
[1757892433915,0.87288058,241.13,241.01,6.79]
[1757892439215,0.87288058,241.1,241.01,6.79]
[1757892439419,26.78,241.19,241.01,6.79]
[1757892439620,0.87288058,241.11,241.01,6.79]
[1757892444725,0.87288058,241.11,241.01,7.66288058]
[1757892447520,0.87288058,241.14,241.01,7.66288058]
[1757892447920,0.87288058,241.16,241.05,6.79]
[1757892448126,18.65288058,241.19,241.08,6.79]
[1757892448820,0.87288058,241.19,241.08,6.79]
[1757892450520,0.87288058,241.22,241.11,6.79]
[1757892452927,102.28,241.24,241.04,6.79]
[1757892452928,0.87288058,241.16,241.04,6.79]
[1757892453134,0.87288058,241.13,241.04,6.79]
[1757892453727,1.36248957,241.15,241.04,6.79]
[1757892455225,1.36248957,241.2,241.04,6.79]
[1757892455531,1.36248957,241.16,241.04,6.79]
[1757892459131,1.36248957,241.2,241.04,6.79]
[1757892466337,1.36248957,241.16,241.04,6.79]
[1757892467040,1.36248957,241.21,241.04,6.79]
[1757892469540,1.36248957,241.25,241.07,1.36248957]
[1757892469740,91.04075511,241.28,241.07,1.36248957]
[1757892469741,1.36248957,241.27,241.08,6.68]
[1757892469939,1.36248957,241.27,241.1,6.68]
[1757892470940,1.36248957,241.27,241.11,8.04248957]
[1757892471241,91.04075511,241.28,241.11,8.04248957]
[1757892472436,1.36248957,241.3,241.11,8.04248957]
[1757892472940,1.36248957,241.3,241.11,16.34623531]
[1757892473241,1.36248957,241.3,241.17,6.68]
[1757892473440,102.18,241.36,241.17,6.68]
[1757892473441,1.36248957,241.35,241.17,6.68]
[1757892475849,1.36248957,241.31,241.17,6.68]
[1757892476045,102.18,241.36,241.17,6.68]
[1757892476248,1.36248957,241.27,241.17,6.68]
[1757892479853,1.36248957,241.31,241.17,6.68]
[1757892484650,1.36248957,241.32,241.17,6.68]
[1757892485452,1.36248957,241.28,241.17,6.68]
[1757892486054,22.5,241.27,241.17,6.68]
[1757892487048,1.36248957,241.24,241.17,6.68]
[1757892487256,1.36248957,241.24,241.1,6.91]
[1757892487656,22.5,241.27,241.1,6.91]
[1757892487657,1.36248957,241.2,241.1,6.91]
[1757892488752,23.32248957,241.25,241.1,6.91]
[1757892488955,43.20248957,241.25,241.1,6.91]
[1757892489358,1.36248957,241.25,241.1,6.91]
[1757892489552,20.92,241.24,241.1,6.91]
[1757892489753,1.36248957,241.21,241.1,6.91]
[1757892498468,1.36248957,241.25,241.1,6.91]
[1757892498959,1.36248957,241.21,241.1,6.91]
[1757892499659,1.36248957,241.22,241.1,6.91]
[1757892501160,1.36248957,241.25,241.1,6.91]
[1757892502565,9.0,241.28,241.12,7.0]
[1757892502764,1.36248957,241.29,241.12,7.0]
[1757892502963,1.36248957,241.29,241.15,7.0]
[1757892504462,89.12741938,241.31,241.15,7.0]
[1757892506060,90.48990895,241.31,241.15,20.38]
[1757892506268,90.48990895,241.31,241.16,7.0]
[1757892506766,1.36248957,241.27,241.16,7.0]
[1757892508668,89.12741938,241.31,241.05,3.7317]
[1757892508669,1.36248957,241.23,241.06,7.0]
[1757892508862,1.36248957,241.23,241.07,7.0]
[1757892513069,1.36248957,241.19,241.07,7.0]
[1757892513771,0.87165526,241.15,241.07,7.0]
[1757892514267,0.87165526,241.12,241.02,7.0]
[1757892515270,0.87165526,241.09,241.02,7.0]
[1757892517469,0.87165526,241.06,241.02,7.0]
[1757892518276,0.87165526,241.06,241.0,3.47600499]
[1757892518775,0.87165526,241.06,241.01,7.0]
[1757892518975,0.87165526,241.06,241.0,3.47600499]
[1757892519176,0.87165526,241.06,241.01,7.0]